bitfinex/quotes_ETHUSD_20250511
["timestamp","ask_amount","ask_price","bid_price","bid_amount"]
[1746984615189,0.08743939,2478.7,2478.4,0.7582]
[1746984615421,0.08743939,2478.7,2478.5,19.1253931]
[1746984615582,4.12192706,2478.7,2478.6,3.3811621]
[1746984615922,4.67192706,2478.7,2478.6,11.3811621]
[1746984616073,0.55,2478.5,2478.1,3.3811621]
[1746984616273,0.55,2478.3,2478.2,8.0]
[1746984616473,0.55,2478.6,2478.2,8.0]
[1746984617211,4.58461635,2478.6,2478.2,8.0]
[1746984617410,0.55,2478.3,2478.2,3.3811621]
[1746984617710,5.353124,2478.3,2478.2,3.3811621]
[1746984618009,0.55,2477.9,2477.8,8.0]
[1746984618197,4.03529062,2478.2,2477.5,8.0]
[1746984618198,2.796,2478.1,2477.5,8.0]
[1746984618569,2.796,2478.1,2477.4,3.3811621]
[1746984618570,0.55,2477.8,2477.4,3.3811621]
[1746984619112,1.3425,2477.8,2477.5,8.0]
[1746984619280,0.08185376,2477.7,2477.4,3.3811621]
[1746984619611,0.08185376,2477.7,2477.5,8.0]
[1746984619794,0.55,2477.8,2477.4,3.3811621]
[1746984620112,0.55,2477.8,2477.5,8.0]
[1746984620288,0.08004128,2477.7,2477.5,8.0]
[1746984620706,2.795,2477.9,2477.5,9.13811621]
[1746984620904,0.08004128,2477.6,2477.5,9.13811621]
[1746984621089,2.795,2477.9,2477.5,9.13811621]
[1746984621290,0.08004128,2477.6,2477.5,9.13811621]
[1746984621486,2.795,2477.9,2477.5,9.13811621]
[1746984621703,0.08004128,2477.6,2477.5,9.13811621]
[1746984622006,2.795,2477.9,2477.5,12.51927831]
[1746984622211,6.8306967,2477.9,2477.5,11.3811621]
[1746984622515,0.08004128,2477.8,2477.5,11.3811621]
[1746984623317,0.55,2477.7,2477.5,11.3811621]
[1746984623618,1.3425,2477.6,2477.5,11.3811621]
[1746984623908,1.42254128,2477.6,2477.5,11.3811621]
[1746984624072,0.08004128,2477.6,2477.5,13.30627831]
[1746984624272,0.08004128,2477.6,2477.5,31.75118531]
[1746984624474,3.5563,2478.2,2477.5,23.64500631]
[1746984624700,3.5563,2478.2,2477.5,13.30627831]
[1746984625034,0.08004128,2478.1,2477.7,8.0]
[1746984625712,0.08004128,2478.1,2477.7,8.04035557]
[1746984625908,0.08004128,2478.1,2477.7,8.0]
[1746984626117,0.08004128,2478.1,2477.8,0.04035554]
[1746984626411,2.796,2478.3,2477.7,9.33466339]
[1746984626911,4.03583824,2477.8,2477.7,8.0]
[1746984627078,4.79699674,2477.9,2477.6,3.3811621]
[1746984627280,0.55,2477.7,2477.6,11.3811621]
[1746984627683,4.58600113,2477.7,2477.6,11.3811621]
[1746984628812,0.7613,2477.9,2477.7,8.0]
[1746984628984,0.7613,2477.9,2477.6,3.3811621]
[1746984629185,4.7970216,2477.9,2477.6,3.3811621]
[1746984629602,3.75040491,2478.1,2477.6,3.3811621]
[1746984629930,4.51170491,2478.3,2477.6,3.71927831]
[1746984630135,4.03566543,2478.0,2477.6,3.3811621]
[1746984630287,0.55,2477.8,2477.6,3.3811621]
[1746984630484,4.58600113,2477.7,2477.6,3.3811621]
[1746984630718,0.55,2477.7,2477.6,3.3811621]
[1746984630933,0.55,2477.7,2477.5,8.0]
[1746984631129,2.794,2477.8,2477.5,8.0]
[1746984631286,2.794,2477.8,2477.5,9.13811621]
[1746984631482,2.794,2477.8,2477.5,9.17847614]
[1746984631692,0.7613,2478.8,2478.3,7.305704]
[1746984631927,0.7613,2478.8,2478.4,8.0]
[1746984632098,2.796,2479.0,2478.4,8.0]
[1746984632099,9.62396145,2479.0,2478.4,8.0]
[1746984632437,0.55,2478.9,2478.4,8.0]
[1746984633110,4.5841463,2478.9,2478.4,8.0]
[1746984633312,4.30040491,2478.5,2478.4,8.0]
[1746984633516,4.0348612,2478.4,2478.0,3.3811621]
[1746984633712,2.794,2478.4,2478.0,3.3811621]
[1746984634328,4.03509504,2478.3,2478.1,8.0]
[1746984634522,4.03509504,2478.3,2478.1,11.3811621]
[1746984635822,6.82894134,2478.4,2478.1,11.3811621]
[1746984637093,4.58518682,2478.2,2478.1,11.3811621]
[1746984637327,0.55,2478.3,2478.1,11.3811621]
[1746984637551,4.58504192,2478.3,2478.1,11.3811621]
[1746984637824,0.55,2478.3,2478.1,11.3811621]
[1746984639115,4.58506019,2478.3,2478.1,11.3811621]
[1746984640134,4.03474758,2478.5,2478.1,11.3811621]
[1746984640135,6.82714283,2478.9,2478.3,8.0]
[1746984640331,2.793,2478.9,2478.5,8.0]
[1746984640521,7.60916945,2479.0,2478.5,8.0]
[1746984640717,2.793,2478.9,2478.5,8.0]
[1746984640919,2.793,2479.1,2478.7,8.0]
[1746984641233,12.40116824,2479.3,2478.7,8.04033956]
[1746984641437,8.82896824,2479.3,2478.9,8.0]
[1746984641725,8.82896824,2479.3,2479.1,8.0]
[1746984641726,11.62196824,2479.3,2479.1,8.0]
[1746984643307,0.55,2479.2,2479.1,8.0]
[1746984644424,11.62196824,2479.3,2479.1,8.0]
[1746984645038,8.82896824,2479.3,2479.1,11.3811621]
[1746984645425,6.03296824,2479.3,2479.1,12.0374877]
[1746984645848,6.03296824,2479.3,2479.2,11.3811621]
[1746984646170,6.58296824,2479.3,2479.2,11.3811621]
[1746984646327,6.58296824,2479.3,2478.7,10.2]
[1746984646328,10.61636476,2479.3,2478.5,4.1726621]
[1746984646533,4.03477391,2478.5,2478.2,3.3811621]
[1746984646729,4.03477391,2478.5,2478.3,3.3811621]
[1746984646730,0.55,2478.4,2478.3,3.3811621]
[1746984646959,4.5848612,2478.4,2478.0,3.3811621]
[1746984647348,0.55,2478.2,2478.0,3.3811621]
[1746984647671,0.55,2478.2,2478.1,8.0]
[1746984647850,2.791,2478.5,2478.1,1.21726621]
[1746984648054,2.791,2478.5,2478.1,8.0]
[1746984648376,2.791,2478.5,2478.0,3.3811621]
[1746984648867,4.58488065,2478.4,2478.1,8.0]
[1746984649055,4.58488065,2478.4,2478.0,3.3811621]
[1746984649567,0.55,2478.4,2478.1,8.0]
[1746984649930,4.58493551,2478.4,2478.1,8.0]
[1746984650670,0.55,2478.4,2477.8,8.0]
[1746984650969,0.55,2478.4,2477.9,1.17846793]
[1746984651555,4.03477296,2478.5,2477.9,1.13811621]
[1746984651789,4.03489131,2478.4,2477.9,1.13811621]
[1746984651944,4.03475972,2478.5,2477.9,1.13811621]
[1746984652861,0.55,2478.4,2477.9,1.13811621]
[1746984653061,0.55,2478.4,2477.8,8.0]
[1746984653233,4.03511691,2478.3,2477.8,8.0]
[1746984654441,4.58491615,2478.4,2477.8,8.0]
[1746984654979,0.55,2478.4,2478.0,8.0]
[1746984655151,2.795,2478.6,2478.1,1.96996978]
[1746984655351,4.03442966,2478.7,2478.1,1.92961621]
[1746984656481,7.58983436,2479.0,2478.1,1.92961621]
[1746984656684,0.8157,2479.2,2478.4,0.7915]
[1746984656881,6.03296824,2479.3,2478.5,0.91948858]
[1746984657182,6.03296824,2479.3,2478.8,0.7915]
[1746984657353,0.05,2479.4,2479.0,0.7915]
[1746984657556,0.05,2479.4,2479.2,8.7915]
[1746984657754,0.05,2479.4,2479.3,27.39218265]
[1746984657954,0.05,2479.4,2479.3,38.35126736]
[1746984658252,0.05,2479.4,2479.3,36.12300936]
[1746984659354,0.05,2479.4,2479.3,24.67873036]
[1746984659556,0.05,2479.4,2479.3,21.5811621]
[1746984659758,0.05,2479.4,2479.3,22.3339621]
[1746984659962,0.05,2479.4,2479.3,27.1832421]
[1746984660164,0.05,2479.4,2479.3,22.3339621]
[1746984660986,0.05,2479.4,2479.3,12.1339621]
[1746984661143,0.05,2479.4,2479.3,13.34735831]
[1746984661847,0.05,2479.4,2479.3,35.20920631]
[1746984662048,0.05,2479.4,2479.3,32.57328631]
[1746984662387,2.84,2480.4,2479.6,0.7528]
[1746984662388,0.05,2480.4,2479.6,0.7528]
[1746984662613,0.05,2480.4,2479.9,0.7528]
[1746984662772,0.08815393,2480.3,2480.1,8.0]
[1746984662956,0.05,2480.4,2480.3,8.0]
[1746984663364,0.13815393,2480.4,2480.3,8.0]
[1746984663594,0.05,2480.4,2480.3,8.0]
[1746984663749,0.13815393,2480.4,2480.3,8.0]
[1746984663946,4.0816078,2480.4,2480.3,8.0]
[1746984664144,4.03181401,2480.3,2480.1,3.3311621]
[1746984664347,1.09631471,2480.4,2480.1,3.3311621]
[1746984664563,0.6,2480.4,2480.1,3.3311621]
[1746984664792,0.08815393,2480.3,2480.1,3.3311621]
[1746984666191,0.08815393,2480.3,2480.2,0.79161618]
[1746984666399,0.08815393,2480.3,2480.2,23.50758118]
[1746984666606,0.08815393,2480.3,2480.2,8.7513]
[1746984667301,0.08815393,2480.3,2480.2,8.79161493]
[1746984667608,0.08815393,2480.3,2480.2,19.26256493]
[1746984667805,0.08815393,2480.3,2480.2,9.9635777]
[1746984667974,0.08815393,2480.3,2480.2,10.00389272]
[1746984668883,0.08815393,2480.3,2480.2,8.79161502]
[1746984669203,4.66992428,2480.3,2480.2,8.0]
[1746984669409,0.63815393,2480.3,2480.2,8.0]
[1746984670901,4.66992428,2480.3,2480.2,8.0]
[1746984671224,4.66992428,2480.3,2479.9,3.3311621]
[1746984671409,4.0319329,2480.2,2480.0,8.0]
[1746984671620,4.66998143,2480.3,2480.0,8.0]
[1746984671908,4.5818097,2480.3,2480.0,8.0]
[1746984672072,0.09102068,2480.2,2480.0,8.0]
[1746984672273,4.5818097,2480.3,2480.0,8.0]
[1746984672473,0.09071898,2480.2,2480.0,8.0]
[1746984672669,0.55,2480.3,2480.0,8.0]
[1746984672868,0.05,2480.4,2480.0,8.0]
[1746984672869,0.09071898,2480.2,2480.0,11.3311621]
[1746984673074,0.05,2480.4,2480.1,12.19358241]
[1746984673302,0.05,2480.4,2480.3,8.0]
[1746984673504,0.05,2480.4,2480.3,26.6029444]
[1746984673688,0.05,2480.4,2480.3,26.858135]
[1746984673913,0.05,2480.4,2480.3,29.95927471]
[1746984674433,0.05,2480.4,2480.3,28.46619471]
[1746984675201,0.05,2480.4,2480.3,19.75018671]
[1746984675403,0.05,2480.4,2480.3,18.32818671]
[1746984676734,0.05,2480.4,2480.3,15.10897271]
[1746984676938,0.05,2480.4,2480.3,18.44013481]
[1746984677111,0.1454459,2480.4,2480.3,18.44013481]
[1746984677443,0.05,2480.4,2480.3,18.44013481]
[1746984677612,5.53548596,2481.4,2480.6,8.0]
[1746984677814,0.0954459,2481.3,2480.8,8.0]
[1746984679208,0.0954459,2481.3,2480.9,0.04030118]
[1746984679438,0.6454459,2481.3,2480.8,8.0]
[1746984679608,4.67564867,2481.3,2480.8,8.0]
[1746984680535,4.67564867,2481.3,2480.7,4.1032621]
[1746984680536,4.03073579,2481.0,2480.7,3.2811621]
[1746984680735,4.58091544,2480.9,2480.4,4.0651621]
[1746984680939,4.68018181,2480.9,2480.5,3.2811621]
[1746984681237,0.09926637,2480.9,2480.6,8.0]
[1746984681468,4.58071605,2481.0,2480.6,8.0]
[1746984681620,0.09906535,2480.9,2480.6,8.0]
[1746984681820,4.12986658,2480.9,2480.6,8.0]
[1746984682851,0.09906535,2480.9,2480.6,8.0]
[1746984683053,0.09906535,2480.9,2480.6,9.12811621]
[1746984683958,0.09906535,2480.9,2480.8,8.0]
[1746984684126,0.09906535,2480.9,2480.8,36.05125691]
[1746984684327,2.74848596,2481.4,2480.9,0.7549]
[1746984684541,0.05,2481.4,2481.2,0.7549]
[1746984684747,0.05,2481.4,2481.3,8.87549]
[1746984685264,0.05,2481.4,2481.3,32.944558]
[1746984685759,0.05,2481.4,2481.3,15.798659]
[1746984685940,0.05,2481.4,2481.3,12.236187]
[1746984688149,0.05,2481.4,2481.3,25.7173491]
[1746984689664,0.05,2481.4,2481.3,17.7173491]
[1746984689873,0.05,2481.4,2481.3,20.5033491]
[1746984690727,0.05,2481.4,2481.3,28.5033491]
[1746984692769,0.05,2482.4,2481.9,8.0]
[1746984692970,0.05,2482.4,2482.1,8.8137]
[1746984693155,0.05,2482.4,2482.3,8.0]
[1746984693472,0.05,2482.4,2482.3,22.5585]
[1746984693774,0.05,2482.4,2482.3,11.2311621]
[1746984694072,0.05,2482.4,2482.3,28.1545811]
[1746984694268,0.05,2482.4,2482.3,31.99003921]
[1746984695987,0.05,2482.4,2482.3,44.61203921]
[1746984696151,0.05,2483.4,2482.3,43.79833921]
[1746984696331,0.05,2483.4,2482.8,8.8137]
[1746984696636,0.8093,2483.4,2483.0,8.0]
[1746984696838,0.105496,2483.3,2483.0,10.22448621]
[1746984697655,0.105496,2483.3,2483.2,8.0]
[1746984697879,0.05,2483.4,2483.2,2.26142]
[1746984698066,0.105496,2483.3,2483.0,10.22448621]
[1746984698233,0.05,2483.4,2483.2,8.0]
[1746984698438,0.105496,2483.3,2483.0,10.22448621]
[1746984698639,0.05,2483.4,2483.2,8.0]
[1746984698934,0.105496,2483.3,2483.0,10.22448621]
[1746984699162,0.105496,2483.3,2483.2,8.0]
[1746984699363,0.105496,2483.3,2483.2,27.648378]
[1746984699579,0.05,2483.4,2483.2,21.008834]
[1746984699886,0.05,2483.4,2483.3,16.281723]
[1746984700041,0.05,2483.4,2483.3,17.7908891]
[1746984700355,0.05,2483.4,2483.3,13.2499621]
[1746984700779,0.16423458,2483.4,2483.3,11.2311621]
[1746984700953,0.05,2483.4,2483.3,11.2311621]
[1746984701438,0.16423458,2483.4,2483.3,11.2311621]
[1746984703087,4.02785284,2482.8,2482.2,0.8312]
[1746984703237,4.02785284,2482.8,2482.3,3.2311621]
[1746984703439,3.73464216,2482.6,2482.4,3.2311621]
[1746984703788,0.7633,2482.2,2481.4,0.8312]
[1746984704083,0.55,2482.1,2481.5,3.2311621]
[1746984704259,0.55,2482.1,2480.7,3.5711]
[1746984704260,7.76430712,2481.6,2480.7,3.5711]
[1746984704460,7.76430712,2481.6,2480.7,8.7871]
[1746984704662,0.11378263,2481.5,2480.7,8.7871]
[1746984705084,0.11378263,2481.5,2480.7,0.7871]
[1746984705472,0.55,2481.6,2480.7,8.7871]
[1746984705674,0.11378263,2481.5,2480.8,1.19710999]
[1746984705845,0.7633,2481.7,2481.0,8.0]
[1746984706199,0.11378263,2481.6,2480.8,1.63862629]
[1746984706339,0.11378263,2481.6,2480.8,1.15681]
[1746984707747,0.55,2481.5,2480.8,1.15681]
[1746984708047,0.09806003,2481.4,2480.8,1.15681]
[1746984708353,0.09806003,2481.4,2480.7,8.7871]
[1746984709676,0.09806003,2481.4,2480.7,8.0]
[1746984710681,0.09806003,2481.4,2480.8,0.04030137]
[1746984710986,0.55,2481.6,2480.8,0.04030137]
[1746984711286,0.7633,2481.7,2480.9,0.7814]
[1746984711491,0.09650175,2481.6,2481.1,8.0]
[1746984711658,0.8013,2482.1,2481.3,8.7814]
[1746984711995,0.08822933,2482.0,2481.4,0.04029061]
[1746984712500,0.08822933,2482.0,2481.3,8.7814]
[1746984712682,0.08822933,2482.0,2481.3,8.0]
[1746984712683,0.8013,2481.8,2481.3,8.0]
[1746984712896,0.09024121,2481.7,2481.5,8.0]
[1746984713081,0.8013,2481.8,2481.5,8.0]
[1746984713264,0.09024121,2481.7,2481.5,8.0]
[1746984713616,0.8013,2481.8,2481.5,9.12311621]
[1746984713762,0.09024121,2481.6,2481.5,9.12311621]
[1746984713968,0.8013,2481.8,2481.5,25.55720854]
[1746984714279,1.3206,2482.2,2481.7,8.0]
[1746984714479,1.3206,2482.2,2481.7,0.04029035]
[1746984714906,0.7706,2482.2,2481.9,8.0]
[1746984715124,0.7706,2482.7,2482.1,8.8333]
[1746984715269,0.7706,2482.7,2482.3,8.0]
[1746984715471,4.79848431,2482.7,2482.3,8.0]
[1746984715670,0.7706,2482.7,2482.3,8.0]
[1746984716076,4.7985193,2482.7,2482.3,8.0]
[1746984716298,0.7706,2482.7,2482.2,3.2311621]
[1746984716475,4.57852193,2482.3,2482.2,3.2311621]
[1746984716692,5.34912193,2482.3,2482.2,3.2311621]
[1746984717421,0.7706,2482.7,2482.2,11.2311621]
[1746984717571,0.7706,2482.7,2482.2,8.0]
[1746984718526,0.7706,2482.7,2482.2,8.04028143]
[1746984720819,4.02844515,2482.4,2482.2,8.0]
[1746984721121,0.7558,2482.1,2481.5,3.2311621]
[1746984721288,0.7558,2482.1,2481.3,10.2]
[1746984721289,0.7558,2482.1,2481.6,3.2311621]
[1746984721494,0.7558,2482.1,2481.7,8.0]
[1746984721699,4.78479399,2482.1,2481.6,3.2311621]
[1746984722017,4.78473663,2482.1,2481.6,3.2311621]
[1746984722222,0.55,2482.0,2481.5,8.0]
[1746984722421,0.55,2482.0,2481.5,9.12311621]
[1746984722934,0.7558,2482.1,2481.5,9.12311621]
[1746984723129,6.3168,2482.4,2481.6,0.04029429]
[1746984723286,6.3168,2482.4,2481.5,9.12311621]
[1746984723620,6.3168,2482.4,2481.6,1.23542783]
[1746984723621,4.57864367,2482.3,2481.6,1.23542783]
[1746984723823,4.52460674,2482.1,2481.6,3.2311621]
[1746984724023,0.55,2482.1,2481.6,3.2311621]
[1746984724189,0.7651,2482.2,2481.7,8.04029237]
[1746984724586,0.7651,2482.2,2481.9,8.0]
[1746984724787,6.8761,2482.4,2481.9,8.0]
[1746984725109,4.02876896,2482.2,2481.9,8.0]
[1746984725309,4.02863379,2482.3,2481.9,8.0]
[1746984725715,1.3151,2482.4,2481.9,9.12311621]
[1746984726388,0.7651,2482.7,2482.1,8.0]
[1746984726696,4.02616497,2483.8,2482.1,8.0]
[1746984726697,4.79205094,2483.3,2482.3,8.7501]
[1746984726889,4.11533676,2483.2,2482.5,8.0]
[1746984727084,0.55,2482.5,2482.1,3.2311621]
[1746984727327,5.34362193,2482.3,2482.2,11.2311621]
[1746984727553,4.79443354,2481.8,2481.7,3.2311621]
[1746984727695,4.02955009,2481.7,2481.2,3.2311621]
[1746984728047,4.57970324,2481.6,2481.2,3.2311621]
[1746984728196,0.09089067,2481.6,2481.2,3.2311621]
[1746984728397,0.09089067,2481.6,2481.3,8.0]
[1746984728640,3.5451,2481.8,2481.3,9.12714636]
[1746984728824,0.08822459,2481.5,2481.3,9.12714636]
[1746984729023,0.7841,2482.4,2481.9,8.0]
[1746984729232,4.02861863,2482.3,2482.1,8.0]
[1746984729388,0.7841,2482.1,2482.0,3.2311621]
[1746984729748,9.70273884,2482.1,2482.0,11.2311621]
[1746984730104,4.02965828,2481.6,2481.1,3.2311621]
[1746984730331,4.0309864,2480.8,2480.1,0.8706]
[1746984730505,0.55,2480.8,2480.1,0.8706]
[1746984730697,4.58096324,2480.8,2480.1,0.8706]
[1746984730894,0.55,2480.8,2480.1,0.8706]
[1746984731092,0.7841,2481.1,2480.2,0.04031313]
[1746984731313,0.7841,2481.1,2480.2,0.04031312]
[1746984731719,4.58026746,2481.3,2480.2,1.13329131]
[1746984731902,0.55,2481.3,2480.3,0.8206]
[1746984732209,0.55,2481.3,2480.4,8.04030504]
[1746984732805,3.5641,2481.4,2480.4,8.04030504]
[1746984733019,2.782,2481.5,2480.5,0.8206]
[1746984733223,2.782,2481.5,2480.7,0.8206]
[1746984733527,2.782,2481.5,2480.8,0.88609003]
[1746984734543,0.55,2481.2,2480.3,13.4311621]
[1746984734701,0.7522,2481.3,2480.4,0.80520668]
[1746984735033,4.03007591,2481.4,2480.4,8.7649]
[1746984735525,6.81190442,2481.5,2480.4,8.7649]
[1746984735526,6.81188515,2481.5,2480.4,8.7649]
[1746984735749,4.03026964,2481.3,2480.5,2.21960621]
[1746984735925,4.03039374,2481.2,2480.4,8.7649]
[1746984736240,4.03096987,2480.8,2480.3,13.4311621]
[1746984736552,4.78341806,2480.7,2480.4,3.2311621]
[1746984736693,0.7522,2480.7,2480.4,3.2311621]
[1746984737037,0.7522,2481.0,2480.5,8.0]
[1746984737200,0.7522,2481.0,2480.5,8.04031319]
[1746984737401,4.58046762,2481.2,2480.5,8.04031319]
[1746984737812,0.55,2481.2,2480.5,8.04031319]
[1746984738103,0.55,2481.2,2480.6,0.7649]
[1746984738299,7.56236977,2481.3,2480.8,8.0]
[1746984738542,7.56236977,2481.3,2480.9,3.2311621]
[1746984738753,2.78,2481.5,2481.0,11.2311621]
[1746984738962,2.78,2481.5,2481.2,8.0]
[1746984739119,0.55,2481.4,2481.2,8.0]
[1746984739640,0.55,2481.5,2481.2,8.0]
[1746984740904,0.7522,2482.3,2481.4,8.0]
[1746984741108,5.73270078,2482.1,2481.6,8.0]
[1746984742041,0.55,2481.9,2481.6,8.0]
[1746984742247,4.78169591,2481.7,2481.6,8.0]
[1746984742551,4.03030791,2481.2,2481.1,3.2311621]
[1746984742751,5.27680674,2481.3,2480.8,3.2311621]
[1746984743034,4.0303368,2481.2,2480.8,3.2311621]
[1746984743228,5.33238702,2481.3,2480.9,8.0]
[1746984743551,5.27680674,2481.3,2480.5,3.2311621]
[1746984743704,4.03071648,2481.0,2480.6,3.2311621]
[1746984743906,4.03071648,2481.0,2480.7,8.0]
[1746984744329,0.7522,2481.3,2480.7,8.04031]
[1746984744527,0.55,2481.5,2480.8,0.808]
[1746984744719,0.7889,2481.6,2480.9,3.27146287]
[1746984745038,0.7889,2481.6,2480.9,5.49940916]
[1746984745610,4.81857611,2481.6,2480.9,5.45910839]
[1746984746017,0.7889,2481.6,2480.9,5.45910839]
[1746984746209,5.73270078,2482.1,2480.9,5.45910839]
[1746984746210,5.73270078,2482.1,2481.0,0.808]
[1746984746410,5.73270078,2482.1,2480.9,13.49940913]
[1746984746411,5.73270078,2482.1,2481.2,8.808]
[1746984746644,5.73270078,2482.1,2481.5,0.808]
[1746984746832,5.73270078,2482.1,2481.3,15.97739587]
[1746984746833,5.73270078,2482.1,2481.8,0.808]
[1746984747031,5.73270078,2482.1,2482.0,8.0]
[1746984747231,5.73270078,2482.1,2482.0,11.2311621]
[1746984748172,5.73270078,2482.1,2482.0,15.0052221]
[1746984748354,5.73270078,2482.1,2482.0,16.35669611]
[1746984748673,5.73270078,2482.1,2482.0,12.58263611]
[1746984748859,5.81287202,2482.1,2482.0,12.58263611]
[1746984749567,5.81287202,2482.1,2482.0,11.2311621]
[1746984749952,5.73270078,2482.1,2482.0,11.2311621]
[1746984750154,5.73270078,2482.1,2482.0,3.2311621]
[1746984750155,11.21397266,2482.1,2482.0,3.2311621]
[1746984750375,0.55,2482.0,2481.2,0.8237]
[1746984750556,4.0296517,2481.7,2481.3,3.2311621]
[1746984750741,0.08787261,2481.9,2481.3,3.2311621]
[1746984750944,0.55,2481.8,2481.4,8.0]
[1746984751254,0.71846734,2481.9,2481.5,13.03893645]
[1746984751255,0.07859412,2481.7,2481.5,13.03893645]
[1746984751443,0.07859412,2481.7,2481.6,12.0548621]
[1746984751772,5.73270078,2482.1,2481.7,8.0]
[1746984751972,5.73270078,2482.1,2481.9,8.0]
[1746984752283,5.73270078,2482.1,2482.0,1.94681621]
[1746984753034,2.78,2482.7,2482.0,1.94681621]
[1746984753233,2.78,2482.9,2482.2,8.0]
[1746984753660,0.864,2483.4,2482.4,8.0]
[1746984753989,4.89076591,2483.4,2482.6,8.789]
[1746984754139,0.55,2483.3,2482.6,11.01504341]
[1746984754341,3.97460674,2483.2,2482.6,8.0]
[1746984754539,4.02787288,2482.7,2482.6,8.0]
[1746984754775,4.57787288,2482.7,2482.6,8.0]
[1746984754985,0.55,2482.6,2482.1,3.2311621]
[1746984755159,4.02852193,2482.3,2481.9,6.04]
[1746984755359,3.593,2482.5,2481.5,6.04]
[1746984755552,4.02894532,2482.1,2481.6,6.04]
[1746984755879,0.55,2482.0,2481.6,6.04]
[1746984756078,0.55,2482.1,2481.7,8.0]
[1746984756880,2.78,2482.2,2481.7,9.44429237]
[1746984757093,0.07587884,2482.0,2481.7,9.404]
[1746984757251,2.78,2482.2,2481.7,9.404]
[1746984757457,0.07587884,2481.9,2481.8,24.24]
[1746984757657,0.05,2483.4,2482.4,2.422]
[1746984757901,0.05,2483.4,2482.6,8.0]
[1746984758097,0.05,2483.4,2482.8,8.0]
[1746984758258,0.05,2483.4,2483.0,8.789]
[1746984758458,0.05,2483.4,2483.2,8.0]
[1746984758663,0.05,2483.4,2483.3,10.06846153]
[1746984758873,0.05,2483.4,2483.3,11.33815153]
[1746984759091,0.05,2483.4,2483.3,11.29789]
[1746984760000,0.05,2483.4,2483.3,10.2709]
[1746984760174,0.05,2483.4,2483.3,11.29799]
[1746984760577,0.05,2483.4,2483.3,14.581236]
[1746984760877,0.05,2483.4,2483.3,12.669666]
[1746984762483,0.05,2483.4,2482.7,0.8046]
[1746984763018,0.05,2483.4,2482.8,0.04027038]
[1746984763223,0.05,2483.4,2482.7,0.8046]
[1746984765901,0.05,2483.4,2482.9,8.0]
[1746984766136,0.05,2483.4,2483.2,0.8046]
[1746984766340,0.05,2483.4,2483.3,23.81083024]
[1746984766639,0.05,2483.4,2483.3,12.006025]
[1746984766816,0.05,2483.4,2483.3,8.0]
[1746984768162,0.05,2483.4,2483.0,16.24]
[1746984768465,0.55,2483.2,2483.1,6.04]
[1746984771559,4.57706185,2483.2,2483.1,6.04]
[1746984771928,4.57706185,2483.2,2482.8,6.08027276]
[1746984772127,4.57706185,2483.2,2482.8,6.04]
[1746984772523,1.3102,2483.1,2482.8,6.04]
[1746984773054,5.33752794,2483.1,2482.8,6.04]
[1746984773226,4.73480674,2483.0,2482.5,6.04]
[1746984773423,4.73480674,2483.0,2482.1,14.04]
[1746984773629,0.7602,2483.0,2482.2,0.0402843]
[1746984773830,0.7602,2483.0,2482.2,0.85022843]
[1746984774373,0.7602,2483.0,2482.4,8.0]
[1746984777767,4.73480674,2483.0,2482.3,6.04]
[1746984777944,0.7757,2482.6,2482.4,6.04]
[1746984778543,0.55,2482.5,2482.1,6.04]
[1746984778744,4.02886772,2482.1,2481.8,6.04]
[1746984778948,5.36102471,2482.3,2481.8,6.04]
[1746984779319,4.57888846,2482.1,2481.8,6.04]
[1746984779458,0.7824,2482.0,2481.5,6.08029288]
[1746984779783,0.7824,2482.0,2481.6,6.04]
[1746984779946,4.81148534,2482.0,2481.6,6.04]
[1746984780144,4.02920457,2481.9,2481.6,6.04]
[1746984780365,0.55,2481.8,2481.7,6.04]
[1746984781090,0.55,2481.8,2481.7,14.04]
[1746984781993,4.57933354,2481.8,2481.7,14.04]
[1746984782158,0.55,2481.8,2481.7,14.04]
[1746984782357,1.3324,2481.6,2481.3,6.04]
[1746984782676,1.3324,2481.6,2481.4,8.0]
[1746984782882,2.26606265,2481.6,2481.4,8.0]
[1746984783103,0.55,2481.5,2481.3,6.04]
[1746984783388,0.55,2481.5,2481.0,8.0]
[1746984784658,0.55,2481.5,2481.1,6.04]
[1746984784858,1.3163,2480.8,2480.7,6.04]
[1746984785046,3.6113,2480.8,2480.4,6.04]
[1746984785252,3.6113,2480.8,2480.5,8.0]
[1746984785478,0.7663,2480.8,2480.5,8.0]
[1746984785679,2.843,2480.9,2480.5,8.0]
[1746984785879,2.843,2480.9,2480.4,7.664]
[1746984786391,2.841,2480.9,2480.5,8.0]
[1746984786755,5.34677193,2481.1,2480.5,8.0]
[1746984786959,0.55,2480.9,2480.5,8.0]
[1746984787154,3.6053,2481.1,2480.7,8.0]
[1746984787367,0.55,2481.0,2480.9,8.0]
[1746984787803,4.5806328,2481.0,2480.9,8.0]
[1746984788143,2.46131053,2481.0,2480.8,6.04]
[1746984788286,1.3163,2481.0,2480.9,8.0]
[1746984788772,5.3469328,2481.0,2480.9,8.0]
[1746984788954,1.3163,2481.0,2480.9,8.0]
[1746984789401,0.55,2481.0,2480.9,8.0]
[1746984789568,2.841,2481.1,2480.9,8.0]
[1746984789763,14.496,2481.8,2480.9,8.0]
[1746984789981,6.4211,2481.7,2481.1,8.0]
[1746984790161,10.45067842,2481.7,2481.1,8.0]
[1746984790593,4.02967094,2481.6,2481.1,8.0]
[1746984790809,4.02982604,2481.5,2481.1,8.0]
[1746984791309,0.55,2481.6,2481.1,8.0]
[1746984791609,4.57967836,2481.6,2481.1,8.0]
[1746984792009,0.55,2481.6,2481.1,8.0]